[Event "GER-ch Youth-ODJM 2022"]
[Site "Willingen"]
[Date "2022.06.06"]
[Round "3.17"]
[White "Metzinger, Hannes"]
[Black "Bartelt, Max Peter"]
[Result "1-0"]
[ECO "C01"]
[WhiteElo "1845"]
[BlackElo "1959"]
[Annotator "TA"]
[PlyCount "99"]
[EventDate "2022.06.05"]
[EventType "swiss"]
[EventRounds "9"]
[EventCountry "GER"]
[SourceTitle "playchess.com"]
[Source "ChessBase"]
[SourceQuality "1"]
[TimeControl "40/4500+30:900+30"]

{[%evp 10,99,8,12,0,-7,4,-21,18,16,26,22,25,22,19,26,33,22,39,13,43,0,46,28,89,0,0,0,17,0,15,2,7,0,56,51,54,50,60,54,73,37,46,40,71,74,82,91,143,141,213,14,339,206,357,325,482,482,452,304,420,0,435,175,894,883,836,819,905,864,5719,5906,4618,2323,6087,6024,29986,29987,29989,29987,29990,29987,29987,29983,29983,29984,29984,29985,29984,29985,29996,620]} 1. e4 {[%emt 0:00:00]} e6 {[%emt 0:00:00]} 2. d4 {[%emt 0:00:00]} d5 {[%emt 0:00:00]} 3. exd5 {[%emt 0:00:00]} exd5 {[%emt 0:00:00]} 4. c4 {[%emt 0:00:00]} Nf6 {[%emt 0:00:00]} 5. Nc3 {[%emt 0:00:00]} Be7 {[%emt 0:00:00]} 6. Bd3 {[%emt 0:00:00]} Be6 {[%emt 0:00:00] C01: French: Exchange Variation.} 7. c5 {[%emt 0:00:00] [#]} b6 $146 {[%emt 0:00:00]} ({Predecessor:} 7... Qd7 8. Nge2 Bf5 9. Qc2 Bxd3 10. Qxd3 Nc6 11. Bf4 O-O 12. O-O Rfe8 13. Rfe1 Nb4 {½-½ (35) Heimlich,O (1715)-Dette,T (1815) Germany 2017}) 8. b4 {[%emt 0:00:00]} O-O {[%emt 0:00:00] The position is equal.} (8... a5 $5 {[%cal Ra5b4]} 9. Bf4 Nc6 $11) 9. a3 {[%emt 0:04:16]} a5 {[%emt 0:00:00] White must now prevent ...axb4.} 10. Rb1 {[%emt 0:00:23]} axb4 {[%emt 0:00:00]} 11. axb4 {[%emt 0:00:06]} Nc6 {[%emt 0:00:00]} 12. Nge2 {[%emt 0:01:03]} Bg4 {[%emt 0:00:00]} 13. f3 {[%emt 0:04:18]} Bh5 {[%emt 0:00:17]} 14. O-O {[%emt 0:01:23]} (14. Bb5 $5 {[%cal Rb5c6]} Nb8 15. Nf4 $14) 14... Bg6 {[%emt 0:05:30]} 15. Bf4 {[%emt 0:08:21]} Nh5 {[%emt 0:03:31]} (15... bxc5 $11 16. bxc5 Nh5) 16. Be3 $14 {[%emt 0:02:24]} Re8 {[%emt 0:02:01] [#]} (16... Bxd3 $11 17. Qxd3 Nf6) 17. Bxg6 {[%emt 0:03:00]} (17. Bb5 $1 $16 {[%cal Rb5c6]} Bxb1 18. Bxc6 (18. Qxb1 Qd7 $15)) 17... hxg6 $11 {[%emt 0:00:07]} 18. Qd2 {[%emt 0:00:05]} Qd7 {[%emt 0:01:00]} 19. Rfc1 {[%emt 0:04:03]} bxc5 {[%emt 0:00:10]} 20. dxc5 {[%emt 0:01:53]} Rad8 {[%emt 0:11:57] ...d4 is the strong threat.} 21. Rd1 {[%emt 0:08:52][%cal Rd2d5]} Qe6 {[%emt 0:09:57]} (21... Qf5 22. Bf2 (22. Nxd5 Nf6) 22... Bg5) (21... Bh4 $11) 22. Nd4 $14 {[%emt 0:05:08]} Nxd4 {[%emt 0:00:37]} 23. Bxd4 {[%emt 0:00:04]} Bf6 {[%emt 0:05:19]} 24. b5 {[%emt 0:01:00]} Qf5 {[%emt 0:04:32]} 25. b6 {[%emt 0:15:30]} cxb6 {[%emt 0:00:06]} 26. cxb6 {[%emt 0:00:04][%cal Bc5b6,Bb6b7][%mdl 32]} Nf4 {[%emt 0:02:25] Hoping for ...Bxd4+.} 27. Bxf6 {[%emt 0:02:40]} Qxf6 {[%emt 0:00:14]} 28. b7 {[%emt 0:04:25]} Qxc3 {[%emt 0:01:56]} 29. Qxf4 $16 {[%emt 0:00:07]} Rb8 {[%emt 0:00:03]} (29... Qc5+ $16 30. Kh1 Rb8) 30. h4 $2 {[%emt 0:01:54]} (30. Rdc1 $18 Qa5 31. h3) 30... Qa5 {[%emt 0:02:13][%mdl 8192]} (30... Qe5 $1 $11 {and Black stays safe.} 31. Qxe5 Rxe5) 31. Kh2 {[%emt 0:01:28] aiming for Rdc1.} Qa7 $2 {[%emt 0:01:04]} (31... Red8 {keeps fighting.} 32. Re1 Qa6) 32. Qc7 {[%emt 0:02:30]} (32. Rxd5 Rxb7 33. Rbd1 Rbe7 $11) 32... Qf2 {[%emt 0:01:14]} (32... Red8 $142 33. Rb4 Qa3) 33. Kh3 $18 {[%emt 0:00:39] Active counter play!} Qa2 {[%emt 0:09:55]} 34. Ra1 {[%emt 0:03:19]} Qb3 {[%emt 0:00:37]} 35. Rab1 {[%emt 0:00:14]} Qa2 {[%emt 0:00:49]} 36. Rb5 {[%emt 0:03:00]} (36. Re1 $142 {Threatening mate with Rxe8+.} Rf8 37. Rb6) 36... Qc4 $2 {[%emt 0:07:41]} (36... Qa6 37. Rb6 (37. Rdxd5 Qe6+ 38. Kh2 Qe7 $14) 37... Qa5) 37. Qxc4 {[%emt 0:03:51]} dxc4 {[%emt 0:00:04][%mdl 4096] Endgame [#] KRR-KRR} 38. Rd7 $1 {[%emt 0:00:06]} Rf8 {[%emt 0:13:14]} 39. Rc5 {[%emt 0:00:20][%cal Bb5c5,Bc5c4,Bc4c8][%mdl 32]} g5 {[%emt 0:00:04]} 40. hxg5 {[%emt 0:00:20]} Kh7 {[%emt 0:00:03]} 41. Rxc4 {[%emt 0:15:48]} Kg6 {[%emt 0:15:07]} 42. Kg4 {[%emt 0:01:02]} Rh8 {[%emt 0:01:13]} 43. f4 {[%emt 0:00:28][%cal Bf3f4,Bf4f5][%mdl 32] White mates.} Rh2 {[%emt 0:01:13]} 44. f5+ {[%emt 0:00:16]} Kh7 {[%emt 0:00:04]} 45. Kg3 {[%emt 0:00:08]} Rh5 {[%emt 0:00:19]} 46. Rc8 {[%emt 0:00:41]} Rxg5+ {[%emt 0:00:05]} 47. Kf4 {[%emt 0:00:04]} Rxb7 {[%emt 0:00:04]} 48. Rxb7 {[%emt 0:00:06]} Rxg2 {[%emt 0:00:02]} 49. Rxf7 {[%emt 0:00:28]} Rg5 {[%emt 0:00:09]} 50. Rh8+ {[%emt 0:00:18] Weighted Error Value: White=0.43/Black=0.53} (50. Rff8 $142 Rxf5+ 51. Kxf5 g6+ 52. Kf6 Kh6 53. Rh8#) 1-0

[Event "GER-ch Youth-ODJM 2022"]
[Site "Willingen"]
[Date "2022.06.06"]
[Round "3.18"]
[White "Brunner, Tobias"]
[Black "Schwartz, Oliver"]
[Result "1-0"]
[ECO "B24"]
[WhiteElo "2007"]
[BlackElo "1753"]
[Annotator "TA"]
[PlyCount "101"]
[EventDate "2022.06.05"]
[EventType "swiss"]
[EventRounds "9"]
[EventCountry "GER"]
[SourceTitle "playchess.com"]
[Source "ChessBase"]
[SourceQuality "1"]
[TimeControl "40/4500+30:900+30"]

{[%evp 19,101,-3,-4,0,0,-5,0,-4,0,-18,43,37,46,35,171,154,160,83,169,162,150,148,178,158,271,114,95,118,141,125,229,95,91,63,71,-53,-41,-48,-37,-27,-38,-49,-33,-33,0,0,0,0,0,0,0,0,12,12,12,12,12,12,12,0,132,132,225,232,285,258,259,252,633,608,514,363,396,366,639,609,752,734,1423,1373,2601,2194,29991,29991]} 1. e4 {[%emt 0:00:00]} c5 {[%emt 0:00:00]} 2. Nc3 {[%emt 0:00:00]} Nc6 {[%emt 0:00:00]} 3. g3 {[%emt 0:00:00]} g6 {[%emt 0:00:00]} 4. Bg2 {[%emt 0:00:00]} Bg7 {[%emt 0:00:00]} 5. f4 {[%emt 0:00:00]} d6 {[%emt 0:00:00]} 6. Nf3 {[%emt 0:00:00]} e6 {[%emt 0:00:00]} 7. O-O {[%emt 0:00:00]} Nge7 {[%emt 0:00:00]} 8. Ne2 {[%emt 0:00:00]} O-O {[%emt 0:00:00]} 9. c3 {[%emt 0:00:00]} f5 {[%emt 0:06:46]} 10. d3 {[%emt 0:01:54]} Rb8 {[%emt 0:05:47]} 11. Be3 {[%emt 0:01:40] B25: Closed Sicilian: 3 g3, lines without early Be3.} b5 {[%emt 0:03:39]} 12. Rb1 {[%emt 0:15:38] [#]} a5 $146 {[%emt 0:16:49]} ({Predecessor:} 12... Bb7 13. Qc2 a5 14. a3 Na7 15. Rfd1 Qc8 16. Rdc1 Ra8 17. Ng5 h6 18. Nh3 Qc6 {0-1 (95) Michalik,M (1161)-Bounine,D (1302) Rotenburg/Wuemme 2007}) 13. Qc2 {[%emt 0:07:09] The position is equal.} Qd7 {[%emt 0:03:08]} 14. Rfd1 {[%emt 0:00:43]} c4 {[%emt 0:08:36]} (14... Bb7 $11) 15. dxc4 {[%emt 0:03:32]} bxc4 {[%emt 0:00:20]} 16. Bc5 {[%emt 0:00:20]} d5 {[%emt 0:03:35]} (16... fxe4 $1 $14 17. Qxe4 (17. Rxd6 Qc7 $11) 17... d5) 17. exd5 $18 {[%emt 0:01:42]} exd5 {[%emt 0:00:16]} 18. Nfd4 {[%emt 0:02:07]} ({White should play} 18. Ned4) 18... Nxd4 {[%emt 0:02:42]} (18... Re8 $16) 19. Nxd4 {[%emt 0:04:48]} Bb7 {[%emt 0:00:38]} 20. Re1 {[%emt 0:00:31]} Rfe8 {[%emt 0:00:44]} 21. Qd2 {[%emt 0:05:59]} Rbc8 {[%emt 0:02:43]} (21... Bh8 $16 {was necessary.} 22. Re2 Rbc8) 22. Ba3 {[%emt 0:01:05]} (22. Ne6 $18 {is the precise move to win.}) 22... Nc6 $16 {[%emt 0:04:06] [#]} 23. Ne6 $1 {[%emt 0:01:42] Threatens to win with Nc5.} d4 {[%emt 0:08:44]} (23... Rxe6 $2 24. Qxd5 Qxd5 25. Bxd5 $18) 24. Nc5 {[%emt 0:02:53] White is more active.} Qc7 {[%emt 0:02:01]} (24... Rxe1+ 25. Qxe1 (25. Rxe1 Qf7 $18) 25... Qf7 26. Nxb7 Qxb7 27. Qe6+ Kh8 28. Re1 $18) (24... Qf7 $16 {might work better.}) 25. Nxb7 {[%emt 0:04:01]} (25. Rxe8+ $18 {has better winning chances.} Rxe8 26. Re1) 25... Qxb7 {[%emt 0:00:06]} 26. Bd5+ {[%emt 0:00:54]} Kh8 {[%emt 0:00:20]} 27. Qg2 {[%emt 0:00:23]} (27. Rxe8+ $16 Rxe8 28. cxd4) 27... Rxe1+ $15 {[%emt 0:02:14]} 28. Rxe1 {[%emt 0:00:07] aiming for Bxc6.} dxc3 {[%emt 0:00:10]} 29. bxc3 {[%emt 0:08:04]} Bxc3 {[%emt 0:00:27]} 30. Rd1 {[%emt 0:02:45]} Qb6+ {[%emt 0:04:08]} 31. Kh1 {[%emt 0:00:11]} Nb4 {[%emt 0:00:42]} (31... Bb4 $5 {[%cal Rb4a3]} 32. Bc1 Ne7 $15) 32. Bxc4 {[%emt 0:01:36]} Rd8 {[%emt 0:04:47]} 33. Rxd8+ {[%emt 0:02:56]} Qxd8 {[%emt 0:00:04]} 34. h4 {[%emt 0:00:08]} Qc8 {[%emt 0:03:03]} 35. Qe2 $40 {[%emt 0:01:56][%mdl 128] White attacks.} Qc6+ {[%emt 0:02:34]} 36. Kh2 {[%emt 0:00:15] And now Bb2 would win.} (36. Kg1 {feels hotter.} Qc5+ 37. Kh2 Kg7 38. h5) 36... Qe4 {[%emt 0:01:32]} 37. Qxe4 {[%emt 0:03:45]} fxe4 $11 {[%emt 0:00:02][%mdl 4096] Endgame KBB-KBN} 38. Kg2 {[%emt 0:01:36]} Kg7 {[%emt 0:00:20]} 39. Kf2 {[%emt 0:03:07]} Nd3+ {[%emt 0:01:20]} (39... Kf6 $11) 40. Ke3 $16 {[%emt 0:01:09]} Nb4 {[%emt 0:02:28]} (40... h5 $16 {was called for.} 41. Kxe4 Nf2+ 42. Ke3 Ng4+ 43. Ke2 Nh6) 41. Kxe4 $18 {[%emt 0:18:21]} Kf6 {[%emt 0:00:00]} 42. g4 {[%emt 0:00:00]} Kg7 {[%emt 0:01:07]} 43. Bc1 {[%emt 0:00:00]} Be1 $2 {[%emt 0:01:33]} (43... h5 44. a3 Nc6 45. gxh5 gxh5) 44. Bb2+ {[%emt 0:00:00]} Kf8 {[%emt 0:01:17]} 45. Bf6 {[%emt 0:00:00]} Nc6 {[%emt 0:02:39]} 46. h5 {[%emt 0:00:00][%cal Bh4h5,Bh5h6][%mdl 32]} Ne7 $2 {[%emt 0:02:00]} (46... gxh5 47. gxh5 Ne7) 47. h6 {[%emt 0:00:00] Strongly threatening Ke5.} Bd2 {[%emt 0:01:40]} 48. Ke5 {[%emt 0:00:00]} Bb4 {[%emt 0:05:35]} 49. Ke6 {[%emt 0:00:00] Kd7 would kill now.} Ke8 {[%emt 0:00:11]} 50. f5 {[%emt 0:00:00]} Ba3 {[%emt 0:01:21]} 51. Bxe7 {[%emt 0:00:00] Weighted Error Value: White=0.23 (precise) /Black=0.68} 1-0

[Event "GER-ch Youth-ODJM 2022"]
[Site "Willingen"]
[Date "2022.06.06"]
[Round "3.20"]
[White "Hofmann, Lorenz"]
[Black "Scherer, Josua"]
[Result "1-0"]
[ECO "D35"]
[WhiteElo "2056"]
[BlackElo "1775"]
[Annotator "TA"]
[PlyCount "95"]
[EventDate "2022.06.05"]
[EventType "swiss"]
[EventRounds "9"]
[EventCountry "GER"]
[SourceTitle "playchess.com"]
[Source "ChessBase"]
[SourceQuality "1"]
[TimeControl "40/4500+30:900+30"]

{[%evp 18,95,13,11,23,0,18,6,15,6,15,0,14,0,16,-16,-7,-26,-22,-21,-22,-26,-23,-21,0,0,0,0,0,0,48,44,27,16,40,41,49,23,51,42,50,0,0,0,0,0,8,8,8,8,8,8,8,0,204,157,182,174,399,399,614,599,639,635,772,756,1102,1022,6107,6114,5754,5622,4134,2006,2027,5073,2154,1889,29974,29975]} 1. d4 {[%emt 0:00:00]} d5 {[%emt 0:00:00]} 2. c4 {[%emt 0:00:00]} e6 {[%emt 0:00:00]} 3. cxd5 {[%emt 0:00:00]} exd5 {[%emt 0:00:00]} 4. Nc3 {[%emt 0:00:00]} Nf6 {[%emt 0:00:00]} 5. Bg5 {[%emt 0:00:00]} Be7 {[%emt 0:00:00]} 6. e3 {[%emt 0:00:00]} Nbd7 {[%emt 0:00:00]} 7. Bd3 {[%emt 0:00:00]} c6 {[%emt 0:00:00]} 8. Nge2 {[%emt 0:00:00]} h6 {[%emt 0:00:00]} 9. Bh4 {[%emt 0:00:00]} O-O 10. O-O {[%emt 0:00:00]} Re8 {[%emt 0:00:00] The main line 10...Re8 scores better than 10...Ne4. D35: Queen's Gambit Declined: Exchange Variation.} 11. f3 {[%emt 0:00:00]} b6 {[%emt 0:03:14]} 12. Bf2 {[%emt 0:00:00]} Bb7 {[%emt 0:08:20] [#] The position is equal.} 13. a3 $146 {[%emt 0:02:55]} ({Predecessor:} 13. Qd2 c5 14. dxc5 Bxc5 15. Nd4 Ne5 16. Bb5 Nfd7 17. Rfd1 a6 18. Bf1 Qf6 19. b3 {1-0 (58) Obodchuk,A (2365)-Drtina,M (2260) Hlohovec 1993}) 13... c5 {[%emt 0:00:51]} 14. Rc1 {[%emt 0:00:30]} Rc8 {[%emt 0:00:30]} 15. Bb1 {[%emt 0:19:13]} a6 {[%emt 0:07:39]} 16. dxc5 {[%emt 0:06:36]} Bxc5 {[%emt 0:01:14]} 17. Nd4 {[%emt 0:02:08]} Ne5 {[%emt 0:02:30]} 18. Ba2 {[%emt 0:08:20]} Nc4 {[%emt 0:21:01]} 19. Bxc4 {[%emt 0:00:07]} dxc4 {[%emt 0:00:03]} 20. e4 {[%emt 0:01:26]} b5 {[%emt 0:01:22]} 21. Nf5 {[%emt 0:01:22]} Qb6 {[%emt 0:12:26]} 22. Qe2 {[%emt 0:04:00]} Rcd8 {[%emt 0:04:17][%cal Of6d5]} 23. Rfd1 {[%emt 0:02:53] Against Nd5} Kf8 {[%emt 0:03:27]} (23... Nd7 $11) 24. Bxc5+ $14 {[%emt 0:03:57]} Qxc5+ {[%emt 0:00:01]} 25. Qf2 {[%emt 0:00:00]} Qxf2+ {[%emt 0:07:33]} 26. Kxf2 Bc6 {[%emt 0:01:25]} 27. Ke3 {[%emt 0:06:18]} h5 {[%emt 0:01:55]} 28. Rd4 {[%emt 0:03:14]} g6 {[%emt 0:02:19]} 29. Ng3 {[%emt 0:11:04]} (29. Rxd8 $14 Rxd8 30. Nd4) 29... Ke7 {[%emt 0:00:41]} 30. Rcd1 {[%emt 0:00:38]} Nd7 {[%emt 0:05:15]} 31. Nge2 {[%emt 0:03:32]} Nc5 {[%emt 0:00:31]} 32. Rxd8 {[%emt 0:05:52]} Rxd8 {[%emt 0:00:01]} 33. Rxd8 {[%emt 0:00:01]} Kxd8 $11 {[%emt 0:00:01][%mdl 4096] Endgame KBN-KNN} 34. Kd4 {[%emt 0:00:01]} Ne6+ {[%emt 0:01:15]} 35. Ke5 {[%emt 0:00:51]} a5 $2 {[%emt 0:03:15] [#]} (35... Kd7 $11 {and Black has nothing to worry.}) 36. Nd4 $18 {[%emt 0:03:40]} Nxd4 {[%emt 0:01:06]} 37. Kxd4 $16 {[%emt 0:00:04] KB-KN} Kd7 $2 {[%emt 0:00:44]} (37... b4) 38. Kc5 $18 {[%emt 0:00:12]} f5 {[%emt 0:00:39]} (38... b4 $142 39. axb4 axb4) 39. exf5 {[%emt 0:00:15]} gxf5 {[%emt 0:00:03]} 40. Nxb5 {[%emt 0:00:12]} f4 {[%emt 0:01:10]} 41. Kxc4 {[%emt 0:15:15]} h4 {[%emt 0:00:00]} 42. h3 {[%emt 0:00:00] [#] Hoping for a4.} Bb7 {[%emt 0:00:00]} 43. b4 {[%emt 0:00:00]} axb4 {[%emt 0:00:00]} 44. axb4 {[%emt 0:00:00]} Kc6 {[%emt 0:00:00]} 45. Nd4+ {[%emt 0:00:00]} (45. Nc3 $142 Bc8 46. b5+ Kc7 47. Kc5) 45... Kd6 {[%emt 0:00:00]} 46. b5 {[%emt 0:00:00]} Bd5+ {[%emt 0:00:00]} 47. Kb4 {[%emt 0:00:00]} Ke5 {[%emt 0:00:00]} 48. Kc5 {[%emt 0:00:00] Weighted Error Value: White=0.08 (flawless) /Black=0.65} 1-0

[Event "GER-ch Youth-ODJM 2022"]
[Site "Willingen"]
[Date "2022.06.06"]
[Round "3.21"]
[White "Dornieden, Jonas"]
[Black "Pick, Max"]
[Result "1/2-1/2"]
[ECO "B01"]
[WhiteElo "2072"]
[BlackElo "1841"]
[Annotator "TA"]
[PlyCount "149"]
[EventDate "2022.06.05"]
[EventType "swiss"]
[EventRounds "9"]
[EventCountry "GER"]
[SourceTitle "playchess.com"]
[Source "ChessBase"]
[SourceQuality "1"]
[TimeControl "40/4500+30:900+30"]

{[%evp 9,149,53,55,22,66,45,57,55,122,106,105,72,205,191,158,142,148,0,0,-42,-40,-28,-51,-64,-62,-151,-148,-201,-50,-47,-45,-100,-67,-110,-55,-839,-573,-1065,-644,-620,-578,-991,-973,-29986,-29987,-29987,-1242,-1067,-968,-29973,-6022,-29979,-29980,-29978,-29979,-29983,-29984,-6349,-335,-337,-218,-220,0,-185,-190,-236,-178,-181,-94,-94,-94,-94,-94,-110,-110,-129,-125,-121,-97,-97,-97,-97,-60,-62,-55,-165,-136,-240,-136,-136,-136,-136,-136,-136,-136,-136,-136,-233,-218,-168,-151,-151,-117,-117,-117,-117,-117,-117,-117,-117,-117,-117,-117,-117,-117,-117,-117,-117,-117,-117,-117,-117,-6,-117,-117,-117,-117,-117,-117,-117,-117,-117,-117,-117,-117,-117,-117,-117,-117,-117,-117,-117]} 1. e4 {[%emt 0:00:00]} d5 {[%emt 0:00:22]} 2. exd5 {[%emt 0:00:00]} Nf6 {[%emt 0:00:05]} 3. d4 {[%emt 0:00:00]} Nxd5 {[%emt 0:00:08]} 4. c4 {[%emt 0:00:00]} Nb6 {[%emt 0:00:55]} 5. Nf3 {[%emt 0:00:00]} Bg4 {[%emt 0:00:10][%cal Oe7e5]} 6. Nc3 {[%emt 0:00:00] B01: Scandinavian Defence.} Nc6 {[%emt 0:02:02]} 7. c5 {[%emt 0:05:32]} (7. d5 $5 {[%cal Rd5c6]} Ne5 8. c5 $16) 7... Nd5 {[%emt 0:02:38]} 8. Bb5 {[%emt 0:03:37] White is slightly better.} Nxc3 {[%emt 0:13:56]} (8... g6 $14) 9. bxc3 $16 {[%emt 0:06:25]} Qd5 {[%emt 0:01:51][%cal Oe7e5]} 10. Be3 {[%emt 0:21:15] Active counter play!} O-O-O {[%emt 0:06:43]} (10... e6 $16 {is a better defense.}) 11. Be2 $1 $18 {[%emt 0:06:23] [#]} e5 $146 {[%emt 0:04:13]} ({Predecessor:} 11... Na5 12. Qa4 b6 13. O-O Bd7 14. Qa3 Kb8 15. Ne5 Be8 16. Bf3 Qe6 17. cxb6 cxb6 18. Rab1 Nb7 19. Qa6 Qc8 20. Bf4 Nd6 21. Rxb6+ Kc7 22. Qxa7+ {1-0 (22) Schenk,M (2048)-Wolf,A (1761) Uckley 2001}) 12. c4 {[%emt 0:03:57]} Qe4 {[%emt 0:04:40][%cal Re5d4]} 13. Bd3 $2 {[%emt 0:11:41]} (13. d5 $16 {Black must now prevent Bd3.} Bxf3 14. gxf3) 13... Bxf3 $15 {[%emt 0:01:14]} 14. gxf3 {[%emt 0:08:14]} Qh4 {[%emt 0:00:31]} 15. d5 {[%emt 0:00:14]} Nd4 {[%emt 0:00:43]} 16. Bxd4 {[%emt 0:02:19]} exd4 {[%emt 0:00:51]} 17. Bf5+ {[%emt 0:03:59]} (17. c6 $1 $15) 17... Kb8 $17 {[%emt 0:00:18]} 18. c6 {[%emt 0:00:34]} (18. d6 $17 {was called for.}) 18... Bb4+ $2 {[%emt 0:00:33]} (18... Re8+ $1 $19 19. Kf1 Bc5) 19. Kf1 $15 {[%emt 0:00:29] Qb1 is the strong threat.} Bc5 {[%emt 0:05:35][%cal Od4d3] aiming for ...d3!} 20. Qd2 {[%emt 0:05:52]} (20. Qb1 $15 b6 21. Qe4) 20... Rhe8 {[%emt 0:01:59][%cal Od4d3] And now ...d3! would win.} 21. Rb1 {[%emt 0:01:00]} b6 $40 {[%emt 0:07:41][%mdl 128] Black mounts an attack.} (21... d3 $17 22. Rxb7+ Ka8) 22. Rb5 $2 {[%emt 0:00:09][%mdl 8192]} (22. h3 $15) 22... Re5 {[%emt 0:01:30]} 23. Bg4 {[%emt 0:03:28]} f5 {[%emt 0:00:55]} 24. f4 {[%emt 0:00:46]} Re4 {[%emt 0:00:35]} 25. Bxf5 {[%emt 0:00:30]} Rxf4 {[%emt 0:00:06]} 26. Bd3 {[%emt 0:00:33]} Rdf8 {[%emt 0:02:26]} 27. Rb2 {[%emt 0:00:14] [#]} Re8 {[%emt 0:01:45]} (27... Bb4 $142 $1 {[%mdl 512]} 28. Qxf4 Qh3+ 29. Ke2 Rxf4 30. Rxb4 Qf3+ 31. Kd2 Qxh1 32. f3 Rxf3 33. Rb2 Rf2+ 34. Be2 Qf1 35. Rxb6+ axb6 36. Kd3 Qxe2+ 37. Kxd4 Qd2+ 38. Ke4 Rf4+ 39. Ke5 Qe3#) 28. h3 $19 {[%emt 0:00:41]} Re3 {[%emt 0:01:01]} 29. a4 {[%emt 0:01:09]} Rxh3 {[%emt 0:03:07]} 30. Rxh3 {[%emt 0:00:33]} Qxh3+ {[%emt 0:00:07]} 31. Ke1 {[%emt 0:00:36]} Qh1+ {[%emt 0:00:10]} 32. Ke2 {[%emt 0:00:09]} Qf3+ {[%emt 0:00:13]} 33. Ke1 {[%emt 0:00:11]} a5 $2 {[%emt 0:00:15]} (33... Rg4 {( -> ...Rg1+)} 34. Bf1 Re4+ 35. Qe2 Qc3+ 36. Kd1 Rxe2 37. Rxe2 Qd3+ 38. Rd2 Qxf1+ 39. Kc2 Qxc4+ 40. Kb1 d3 41. d6 Bd4 42. Rxd3 Qxd3+ 43. Kc1 Bc3 44. dxc7+ Kxc7 45. f4 Qd2+ 46. Kb1 Qb2#) 34. Qe2 {[%emt 0:00:31]} Bb4+ {[%emt 0:05:42]} 35. Kd1 {[%emt 0:00:05]} Bc3 $2 {[%emt 0:04:46]} ({Black should play} 35... Qh3 $19 {[%cal Of4f2] Hoping for ...Rxf2!} 36. Kc2 h5) 36. Ra2 $2 {[%emt 0:01:25]} (36. Rb1 $1 $11 {and White has nothing to worry.}) 36... Qh1+ {[%emt 0:01:01]} 37. Qf1 {[%emt 0:00:10]} (37. Kc2 $142 Bb4 38. Rb2) 37... Qxf1+ {[%emt 0:01:12]} 38. Bxf1 {[%emt 0:00:03][%mdl 4096] Endgame KRB-KRB} Re4 {[%emt 0:02:57]} (38... Bb4 $19 {Strongly threatening ...Rf3.} 39. Bd3 h5) 39. Re2 $17 {[%emt 0:00:20]} Rxe2 {[%emt 0:00:10]} 40. Kxe2 {[%emt 0:00:38] [#] KB-KB} Kc8 $1 {[%emt 0:00:15]} 41. Kf3 {[%emt 0:00:00]} Kd8 {[%emt 0:00:00]} 42. Bd3 {[%emt 0:00:00]} h6 {[%emt 0:00:00]} 43. Ke4 {[%emt 0:00:00]} Ke7 {[%emt 0:00:00]} 44. Ke5 {[%emt 0:00:00]} Bb4 {[%emt 0:00:00]} 45. Kxd4 {[%emt 0:00:37]} Kd6 {[%emt 0:00:00]} 46. f4 $1 {[%emt 0:04:58]} Bd2 {[%emt 0:00:00]} 47. f5 {[%emt 0:08:43]} ({White must play} 47. Ke4 $1 $15) 47... Bf4 {[%emt 0:00:00]} 48. Ke4 {[%emt 0:01:49] [#]} (48. Be2 $17) 48... Bg5 {[%emt 0:00:00]} (48... Bh2 $1 $19 49. Be2 Kc5) 49. Be2 {[%emt 0:00:17]} Bf6 {[%emt 0:00:00]} 50. Bd1 {[%emt 0:00:33]} Be5 {[%emt 0:00:00]} 51. Bh5 {[%emt 0:00:21]} Bg3 {[%emt 0:00:00]} 52. Be2 {[%emt 0:04:27]} Kc5 {[%emt 0:00:00]} 53. Kd3 {[%emt 0:00:22]} (53. Kf3 $17 Bd6 54. Ke4) 53... Kb4 $19 {[%emt 0:00:00]} 54. Bd1 {[%emt 0:00:07]} Bd6 {[%emt 0:00:16]} 55. Kd4 {[%emt 0:00:21]} h5 {[%emt 0:00:51]} 56. Bxh5 {[%emt 0:00:15]} Kxa4 {[%emt 0:00:06]} 57. c5 {[%emt 0:01:02]} Bxc5+ {[%emt 0:00:38]} 58. Kc4 {[%emt 0:00:04]} Ka3 {[%emt 0:00:24]} 59. Bd1 {[%emt 0:00:08]} Bd6 {[%emt 0:00:32]} 60. Bc2 {[%emt 0:00:39]} Kb2 {[%emt 0:01:26]} 61. Ba4 {[%emt 0:00:19]} Be5 {[%emt 0:00:50]} 62. Bd1 {[%emt 0:00:51]} Kc1 {[%emt 0:00:06]} 63. Ba4 {[%emt 0:00:45]} Kd2 {[%emt 0:00:07]} 64. Bb3 {[%emt 0:00:46]} Ke3 {[%emt 0:00:30]} 65. Bc2 {[%emt 0:00:57]} Kf4 {[%emt 0:00:12]} ({Black should try} 65... Bd6 $17 66. Bb3 Ke4 67. Bc2+ Ke5) 66. Kb5 {[%emt 0:00:26]} (66. d6 $1 $11 Bxd6 67. Kb5) 66... Bd6 $17 {[%emt 0:00:14] Black is better.} 67. Bb1 {[%emt 0:00:57]} Ke5 {[%emt 0:00:06]} 68. Bd3 {[%emt 0:00:14]} Kxd5 {[%emt 0:00:19][%cal Oa5a4] Threatens to win with ...a4!} 69. Bc2 {[%emt 0:00:12]} Kd4 {[%emt 0:00:51]} 70. Bd1 {[%emt 0:00:37]} Ke3 {[%emt 0:00:37]} 71. Ba4 {[%emt 0:00:10]} Kf4 {[%emt 0:00:19]} 72. Bc2 {[%emt 0:00:04]} Ke5 {[%emt 0:00:04]} 73. Bb1 {[%emt 0:00:11]} Bc5 {[%emt 0:00:34]} 74. Bc2 {[%emt 0:00:21]} Kd4 {[%emt 0:00:22]} 75. Ba4 {What a bad dream for White.  Weighted Error Value: White=0.84/Black=0.57} 1/2-1/2